bitfinex-derivatives/quotes_BTCF0:USTF0_20260315
["timestamp","ask_amount","ask_price","bid_price","bid_amount"]
[1773603764461,0.041947,71508.0,71496.0,0.041953]
[1773603764663,9.803e-05,71507.0,71497.0,0.0014]
[1773603766254,0.04402909,71525.0,71506.0,0.041947]
[1773603766455,0.04402909,71530.0,71510.0,0.08796694]
[1773603766754,0.041939,71521.0,71509.0,0.08551997]
[1773603767063,0.04194,71520.0,71509.0,0.08551997]
[1773603767265,5.114e-05,71519.0,71509.0,0.04357397]
[1773603768759,0.04402909,71535.0,71507.0,0.0014]
[1773603768968,0.041935,71528.0,71510.0,0.04357397]
[1773603769957,0.09971717,71551.0,71507.0,0.0014]
[1773603769958,0.041934,71531.0,71521.0,0.04357397]
[1773603770152,0.041933,71532.0,71521.0,0.04357397]
[1773603770356,0.04402909,71543.0,71521.0,0.04357397]
[1773603770357,0.0014,71535.0,71521.0,0.08551197]
[1773603770757,0.041933,71532.0,71521.0,0.08551197]
[1773603770955,0.041932,71534.0,71522.0,0.041938]
[1773603771155,0.0014,71537.0,71521.0,0.04357397]
[1773603771360,0.041931,71535.0,71523.0,0.08551197]
[1773603771870,0.04193,71536.0,71524.0,0.041937]
[1773603772167,0.041931,71535.0,71523.0,0.04357397]
[1773603773568,0.041932,71533.0,71523.0,0.04357397]
[1773603774470,0.04333,71537.0,71524.0,0.041937]
[1773603774669,0.041931,71535.0,71523.0,0.04357397]
[1773603775672,0.041931,71535.0,71524.0,0.041937]
[1773603776471,0.04402909,71543.0,71523.0,0.04357397]
[1773603776472,0.041932,71534.0,71523.0,0.04357397]
[1773603781373,0.041932,71533.0,71523.0,0.04357397]
[1773603785987,0.041932,71533.0,71523.0,0.08551097]
[1773603787293,0.041932,71533.0,71523.0,0.04357397]
[1773603788496,0.041932,71533.0,71522.0,0.041938]
[1773603796598,0.041934,71530.0,71520.0,0.041939]
[1773603798200,0.041933,71532.0,71520.0,0.041939]
[1773603798905,0.041933,71532.0,71519.0,0.0014]
[1773603798906,0.041936,71527.0,71519.0,0.0014]
[1773603799412,0.04771292,71535.0,71519.0,0.04334]
[1773603799593,0.041933,71531.0,71520.0,0.041939]
[1773603799793,0.22357758,71530.0,71520.0,0.041939]
[1773603800508,0.26551158,71530.0,71520.0,0.041939]
[1773603800804,0.041935,71528.0,71519.0,0.0014]
[1773603804706,0.041936,71527.0,71519.0,0.0014]
[1773603810209,0.041935,71529.0,71519.0,0.0014]
[1773603811011,0.041935,71528.0,71519.0,0.0014]
[1773603812607,0.0014,71534.0,71519.0,0.0014]
[1773603812811,0.04478869,71529.0,71518.0,0.0014]
[1773603813007,0.04478869,71529.0,71517.0,0.0014]
[1773603813606,0.041936,71527.0,71517.0,0.0014]
[1773603824915,0.041936,71526.0,71517.0,0.0014]
[1773603827116,0.041934,71529.0,71517.0,0.0014]
[1773603827516,0.041934,71529.0,71519.0,0.04194]
[1773603827716,0.041935,71528.0,71518.0,0.04194]
[1773603828422,0.041934,71530.0,71519.0,0.04194]
[1773603828930,0.041934,71529.0,71519.0,0.04194]
[1773603829520,0.041935,71528.0,71517.0,0.043341]
[1773603829721,0.041935,71529.0,71519.0,0.04194]
[1773603832331,0.0014,71532.0,71519.0,0.04194]
[1773603832531,0.22429307,71531.0,71519.0,0.04194]
[1773603832722,0.22429307,71530.0,71519.0,0.04194]
[1773603832922,0.0014,71532.0,71519.0,0.04194]
[1773603833131,0.2242927,71531.0,71519.0,0.04194]
[1773603833333,0.041934,71529.0,71519.0,0.04194]
[1773603835520,0.041935,71528.0,71517.0,0.043341]
[1773603837736,0.041935,71527.0,71517.0,0.043341]
[1773603840736,0.041936,71526.0,71517.0,0.0014]
[1773603845041,0.02207,71551.0,71549.0,0.041922]
[1773603845241,0.02207,71551.0,71532.0,0.041932]
[1773603845242,0.0014,71566.0,71550.0,0.08801017]
[1773603845441,0.0014,71565.0,71552.0,0.04192]
[1773603845629,0.0014,71564.0,71551.0,0.04086377]
[1773603845840,0.0014,71563.0,71551.0,0.04086377]
[1773603846040,0.0014,71562.0,71551.0,0.04086377]
[1773603846543,0.04126345,71571.0,71557.0,0.041918]
[1773603846544,0.0014,71563.0,71557.0,0.041918]
[1773603846848,0.04191,71571.0,71557.0,0.041918]
[1773603847049,0.0014,71570.0,71557.0,0.041918]
[1773603847251,0.0014,71570.0,71555.0,0.041919]
[1773603847443,0.0014,71570.0,71558.0,0.041917]
[1773603847648,0.04191,71571.0,71558.0,0.041917]
[1773603847649,0.0014,71569.0,71558.0,0.041917]
[1773603848236,0.0014,71569.0,71562.0,0.00735]
[1773603848549,0.001,71570.0,71562.0,0.00735]
[1773603848750,0.0014,71569.0,71558.0,0.041917]
[1773603849053,0.00735,71565.0,71558.0,0.041917]
[1773603849654,0.0014,71564.0,71558.0,0.041917]
[1773603850053,0.0014,71564.0,71556.0,0.041918]
[1773603850458,0.0014,71564.0,71555.0,0.041919]
[1773603855760,0.0014,71564.0,71559.0,0.00735]
[1773603856754,0.0014,71563.0,71559.0,0.00735]
[1773603856953,0.00735,71566.0,71559.0,0.00735]
[1773603857147,0.0014,71565.0,71559.0,0.00735]
[1773603857955,0.0014,71565.0,71561.0,0.041915]
[1773603859447,0.041906,71577.0,71561.0,0.04086377]
[1773603859653,0.0014,71576.0,71562.0,0.04086377]
[1773603859863,0.0014,71576.0,71561.0,0.04086377]
[1773603860360,0.0014,71575.0,71561.0,0.04086377]
[1773603860559,0.0014,71575.0,71569.0,0.00735]
[1773603862262,0.0014,71575.0,71571.0,0.00735]
[1773603862962,0.00735,71573.0,71571.0,0.00735]
[1773603863458,0.03914587,71572.0,71557.0,0.041918]
[1773603863663,0.03914587,71569.0,71558.0,0.2552308]
[1773603863860,0.041913,71566.0,71548.0,0.16640855]
[1773603864064,0.0014,71565.0,71556.0,0.00735]
[1773603865664,0.0014,71565.0,71554.0,0.041919]
[1773603867157,0.043313,71565.0,71554.0,0.041919]
[1773603867569,0.043313,71565.0,71557.0,0.00735]
[1773603868970,0.041914,71564.0,71557.0,0.00735]
[1773603871072,0.04192,71553.0,71546.0,0.00736]
[1773603871264,0.0014,71552.0,71546.0,0.00736]
[1773603871665,0.0014,71552.0,71542.0,0.08668631]
[1773603874270,0.0014,71552.0,71543.0,0.20833455]
[1773603875573,0.0014,71552.0,71544.0,0.30429933]
[1773603875777,0.0014,71552.0,71545.0,0.30429933]
[1773603876076,0.0014,71552.0,71546.0,0.30429933]
[1773603876374,0.0014,71552.0,71547.0,0.30429933]
[1773603876575,0.041923,71550.0,71548.0,0.30428165]
[1773603876775,0.043321,71552.0,71540.0,0.041928]
[1773603876979,0.043321,71552.0,71541.0,0.041927]
[1773603877179,0.08801017,71551.0,71534.0,0.04476031]
[1773603877378,0.0014,71550.0,71531.0,0.041933]
[1773603877566,0.041926,71543.0,71531.0,0.041933]
[1773603877874,0.0014,71542.0,71531.0,0.041933]
[1773603878973,0.0014,71542.0,71532.0,0.049292]
[1773603879780,0.0014,71542.0,71532.0,0.041932]
[1773603880370,0.0014,71542.0,71533.0,0.041932]
[1773603880879,0.0014,71542.0,71524.0,0.04476031]
[1773603881078,0.0014,71542.0,71532.0,0.041932]
[1773603882077,0.0014,71542.0,71534.0,0.04476031]
[1773603883582,0.0014,71542.0,71534.0,0.08669131]
[1773603883878,0.0014,71542.0,71534.0,0.041931]
[1773603884079,0.0014,71542.0,71535.0,0.04476031]
[1773603886275,0.0014,71542.0,71534.0,0.041931]
[1773603890589,0.0014,71542.0,71534.0,0.08669131]
[1773603890778,0.0014,71542.0,71535.0,0.04476031]
[1773603892885,0.041924,71547.0,71536.0,0.04193]
[1773603893083,0.043324,71546.0,71536.0,0.04193]
[1773603894392,0.0014,71546.0,71535.0,0.04476031]
[1773603895796,0.043325,71546.0,71535.0,0.041931]
[1773603895992,0.041924,71547.0,71538.0,0.04289231]
[1773603896197,0.0014,71546.0,71538.0,0.04219298]
[1773603896697,0.0014,71545.0,71538.0,0.04219298]
[1773603897797,0.0014,71545.0,71532.0,0.04289231]
[1773603897987,0.0014,71544.0,71536.0,0.04289231]
[1773603898183,0.0014,71543.0,71536.0,0.04289231]
[1773603898388,0.0014,71542.0,71536.0,0.04289231]
[1773603898894,0.0014,71541.0,71536.0,0.04289231]
[1773603899278,0.041926,71544.0,71536.0,0.04289231]
[1773603899496,0.043326,71543.0,71536.0,0.04289231]
[1773603899690,0.0014,71542.0,71536.0,0.04289231]
[1773603900397,0.0014,71541.0,71536.0,0.04289231]
[1773603900599,0.0014,71540.0,71536.0,0.04289231]
[1773603900896,0.0014,71539.0,71536.0,0.04289231]
[1773603913698,0.041922,71550.0,71541.0,0.04289231]
[1773603913900,0.0014,71549.0,71541.0,0.04289231]
[1773603914097,0.0014,71548.0,71541.0,0.04289231]
[1773603914299,0.041924,71547.0,71541.0,0.04289231]
[1773603914501,0.0014,71546.0,71541.0,0.04289231]
[1773603917201,0.0014,71545.0,71541.0,0.04289231]
[1773603917403,0.0014,71544.0,71541.0,0.04289231]
[1773603918110,0.041923,71549.0,71541.0,0.04289231]
[1773603918799,0.0014,71548.0,71541.0,0.04289231]
[1773603919309,0.0014,71547.0,71541.0,0.04289231]
[1773603919510,0.0014,71546.0,71541.0,0.04289231]
[1773603920014,0.041923,71549.0,71541.0,0.04289231]
[1773603920201,0.0014,71545.0,71541.0,0.04289231]
[1773603920402,0.04591836,71564.0,71542.0,0.041926]
[1773603920701,0.0014,71562.0,71543.0,0.04289231]
[1773603920904,0.041922,71551.0,71543.0,0.04289231]
[1773603921212,0.0014,71550.0,71543.0,0.04289231]
[1773603921511,0.0014,71549.0,71543.0,0.04289231]
[1773603921900,0.041922,71551.0,71543.0,0.04289231]
[1773603922101,0.0014,71550.0,71543.0,0.04289231]
[1773603922814,0.0014,71549.0,71543.0,0.04289231]
[1773603923012,0.1150974,71563.0,71543.0,0.04289231]
[1773603923207,0.1150974,71563.0,71546.0,0.04179947]
[1773603923509,0.0014,71562.0,71546.0,0.04179947]
[1773603923916,0.041919,71555.0,71546.0,0.04179947]
[1773603924107,0.0014,71554.0,71546.0,0.04179947]
[1773603924314,0.041919,71555.0,71546.0,0.04179947]
[1773603924506,0.0014,71553.0,71546.0,0.04179947]
[1773603925206,0.0014,71552.0,71532.0,0.04179947]
[1773603925401,0.1278074,71563.0,71532.0,0.04179947]
[1773603925402,0.08797548,71550.0,71532.0,0.04179947]
[1773603925595,0.041927,71543.0,71532.0,0.04179947]
[1773603926504,0.041927,71542.0,71532.0,0.04179947]
[1773603926704,0.0014,71541.0,71532.0,0.04179947]
[1773603927205,0.041929,71539.0,71532.0,0.04179947]
[1773603927394,0.0014,71541.0,71521.0,0.05242101]
[1773603927395,0.041928,71540.0,71523.0,0.04179947]
[1773603927601,0.041932,71533.0,71524.0,0.04179947]
[1773603927805,0.0014,71532.0,71524.0,0.04179947]
[1773603928209,0.041934,71530.0,71524.0,0.04179947]
[1773603928912,0.043333,71532.0,71524.0,0.04179947]
[1773603929509,0.041933,71531.0,71524.0,0.04179947]
[1773603930303,0.0014,71532.0,71524.0,0.04179947]
[1773603930506,0.041933,71531.0,71516.0,0.04179947]
[1773603930717,0.08797548,71530.0,71516.0,0.04179947]
[1773603930917,0.041937,71525.0,71516.0,0.04179947]
[1773603931109,0.0014,71524.0,71516.0,0.04179947]
[1773603931914,0.0014,71524.0,71512.0,0.04179947]
[1773603932810,0.043338,71524.0,71513.0,0.041943]
[1773603933207,0.0014,71524.0,71513.0,0.08374247]
[1773603934316,0.0014,71524.0,71514.0,0.04179947]
[1773603935314,0.0014,71524.0,71514.0,0.08374247]
[1773603937211,0.0014,71524.0,71515.0,0.04179947]
[1773603944323,0.0014,71524.0,71515.0,0.08374147]
[1773603944525,0.0014,71524.0,71515.0,0.041942]
[1773603944726,0.0014,71524.0,71516.0,0.04179947]
[1773603960339,0.043338,71524.0,71516.0,0.04179947]
[1773603960739,0.043338,71524.0,71511.0,0.0001133]
[1773603960740,0.04194,71519.0,71512.0,0.04036268]
[1773603960931,0.04194,71520.0,71512.0,0.04036268]
[1773603961238,0.0014,71524.0,71512.0,0.04036268]
[1773603963539,0.041939,71522.0,71512.0,0.04036268]
[1773603970143,0.041939,71521.0,71512.0,0.04036268]
[1773603979847,0.0014,71524.0,71512.0,0.04036268]
[1773603980046,0.041941,71518.0,71512.0,0.04036268]
[1773603980253,0.041941,71518.0,71511.0,0.0001133]
[1773603980254,0.043341,71517.0,71511.0,0.0001133]
[1773603980443,0.0014,71516.0,71511.0,0.0001133]
[1773603988949,0.041943,71514.0,71511.0,0.0001133]
[1773603989144,0.0014,71516.0,71503.0,0.03758541]
[1773603989943,0.041943,71515.0,71503.0,0.07953441]
[1773603990155,0.0001133,71514.0,71504.0,0.041949]
[1773603991458,0.0420563,71514.0,71503.0,0.03758541]
[1773603992958,0.0420563,71514.0,71503.0,0.07953441]
[1773603993454,0.0420563,71514.0,71503.0,0.041949]
[1773603994051,0.0420563,71514.0,71504.0,0.041949]
[1773603995059,0.0420563,71514.0,71504.0,0.07953441]
[1773603995359,0.0001133,71514.0,71504.0,0.07953441]
[1773603998967,0.0420563,71514.0,71504.0,0.07953441]
[1773604000875,0.0001133,71514.0,71505.0,0.07953341]
[1773604001070,0.0014,71513.0,71506.0,0.03758541]
[1773604001276,0.0014,71512.0,71506.0,0.03758541]
[1773604003374,0.041942,71516.0,71506.0,0.03758541]
[1773604003573,0.0014,71515.0,71506.0,0.03758541]
[1773604007172,0.03704604,71544.0,71514.0,0.03758541]
[1773604007377,0.03704604,71544.0,71507.0,0.041947]
[1773604007378,0.041934,71529.0,71510.0,0.08803248]
[1773604007568,0.041934,71529.0,71511.0,0.03758541]
[1773604007768,0.041934,71529.0,71510.0,0.08803248]
[1773604007769,0.02795874,71528.0,71517.0,0.03758541]
[1773604007969,0.0014,71527.0,71517.0,0.03758541]
[1773604008168,0.0014,71527.0,71518.0,0.03758541]
[1773604008369,0.02655874,71528.0,71518.0,0.03758541]
[1773604008570,0.0014,71527.0,71518.0,0.03758541]
[1773604008875,0.0014,71527.0,71517.0,0.041941]
[1773604008876,0.041934,71531.0,71510.0,0.08803248]
[1773604009075,0.043334,71530.0,71511.0,0.03758541]
[1773604009278,0.043335,71529.0,71511.0,0.03758541]
[1773604009473,0.041935,71529.0,71511.0,0.03758541]
[1773604009668,0.08803248,71540.0,71517.0,0.03758541]
[1773604009874,0.04193,71537.0,71517.0,0.03758541]
[1773604010978,0.041936,71527.0,71517.0,0.03758541]
[1773604011177,0.0014,71526.0,71517.0,0.03758541]
[1773604013375,0.0024,71526.0,71517.0,0.03758541]
[1773604015378,0.0014,71526.0,71517.0,0.03758541]
[1773604015977,0.0014,71525.0,71518.0,0.03475221]
[1773604016280,0.04194,71519.0,71509.0,0.03475221]
[1773604016475,0.041939,71521.0,71510.0,0.03475221]
[1773604016878,0.041939,71521.0,71511.0,0.03475221]
[1773604017279,0.041938,71523.0,71512.0,0.03475221]
[1773604018388,0.041939,71522.0,71512.0,0.03475221]
[1773604030096,0.041939,71522.0,71513.0,0.03475221]
[1773604044604,0.0014,71525.0,71513.0,0.041943]
[1773604044812,0.0014,71525.0,71514.0,0.03424404]
[1773604045307,0.10969984,71534.0,71514.0,0.03424404]
[1773604045613,0.0014,71540.0,71531.0,0.03424404]
[1773604045905,0.041927,71541.0,71531.0,0.03424404]
[1773604046110,0.0014,71540.0,71531.0,0.03424404]
[1773604046411,0.0014,71539.0,71531.0,0.03424404]
[1773604047109,0.0337805,71555.0,71534.0,0.03424404]
[1773604047311,0.08803075,71560.0,71530.0,0.08803075]
[1773604047312,0.041923,71548.0,71538.0,0.03424404]
[1773604047704,0.0337805,71559.0,71538.0,0.03424404]
[1773604047911,0.0014,71552.0,71539.0,0.03424404]
[1773604048110,0.041923,71548.0,71539.0,0.03424404]
[1773604049117,0.041922,71550.0,71539.0,0.03424404]
[1773604049302,0.001,71553.0,71539.0,0.03424404]
[1773604049508,0.0014,71552.0,71539.0,0.03424404]
[1773604049704,0.041923,71549.0,71539.0,0.03424404]
[1773604050014,0.0014,71548.0,71539.0,0.03424404]
[1773604050312,0.041923,71549.0,71539.0,0.03424404]
[1773604050517,0.0014,71547.0,71539.0,0.03424404]
[1773604050716,0.043324,71547.0,71539.0,0.03424404]
[1773604051017,0.0014,71546.0,71539.0,0.03424404]
[1773604052814,0.043325,71546.0,71539.0,0.03424404]
[1773604053015,0.041925,71545.0,71539.0,0.03424404]
[1773604056623,0.0014,71546.0,71539.0,0.03424404]
[1773604057126,0.043325,71546.0,71539.0,0.03424404]
[1773604058326,0.043325,71546.0,71534.0,0.041931]
[1773604058525,0.043325,71546.0,71535.0,0.03424404]
[1773604059326,0.041925,71545.0,71535.0,0.03424404]
[1773604065431,0.041926,71543.0,71535.0,0.03424404]
[1773604073127,0.041925,71545.0,71535.0,0.03424404]
[1773604074844,0.041926,71544.0,71535.0,0.03424404]
[1773604078558,0.0014,71543.0,71536.0,0.04193]
[1773604078766,0.0014,71542.0,71536.0,0.04193]
[1773604082869,0.0014,71542.0,71537.0,0.03333064]
[1773604106963,0.0014,71542.0,71537.0,0.07525964]
[1773604107163,0.0014,71542.0,71538.0,0.02927304]
[1773604112475,0.041921,71552.0,71540.0,0.02927304]
[1773604112772,0.0014,71551.0,71545.0,0.02927304]
[1773604113080,0.0014,71550.0,71545.0,0.02927304]
[1773604113280,0.0014,71550.0,71541.0,0.02927304]
[1773604113574,0.0014,71549.0,71541.0,0.02927304]
[1773604114179,0.0014,71548.0,71543.0,0.02927304]
[1773604114677,0.0014,71547.0,71543.0,0.02927304]
[1773604114982,0.04192,71554.0,71545.0,0.02927304]
[1773604115181,0.043321,71553.0,71545.0,0.02927304]
[1773604115380,0.0014,71552.0,71545.0,0.02927304]
[1773604115571,0.00736,71547.0,71545.0,0.02927304]
[1773604115876,0.0014,71551.0,71545.0,0.02927304]
[1773604116078,0.041921,71553.0,71545.0,0.02927304]
[1773604116274,0.0014,71550.0,71545.0,0.02927304]
[1773604116576,0.041921,71553.0,71545.0,0.02927304]
[1773604116772,0.0014,71549.0,71545.0,0.02927304]
[1773604117174,0.041921,71553.0,71545.0,0.02927304]
[1773604117380,0.0014,71552.0,71545.0,0.02927304]
[1773604117777,0.043322,71551.0,71545.0,0.02927304]
[1773604117976,0.0014,71550.0,71545.0,0.02927304]
[1773604120483,0.043322,71550.0,71545.0,0.02927304]
[1773604122272,0.0014,71549.0,71545.0,0.02927304]
[1773604122472,0.0014,71548.0,71545.0,0.02927304]
[1773604122778,0.00735,71562.0,71545.0,0.02927304]
[1773604123083,0.0014,71561.0,71545.0,0.02927304]
[1773604123382,0.0014,71560.0,71545.0,0.02927304]
[1773604123769,0.00735,71562.0,71545.0,0.02927304]
[1773604124083,0.04192,71553.0,71545.0,0.02927304]
[1773604124479,0.0014,71552.0,71545.0,0.02927304]
[1773604124879,0.0014,71554.0,71548.0,0.02927304]
[1773604125176,0.0014,71556.0,71550.0,0.02927304]
[1773604125380,0.00735,71562.0,71550.0,0.02927304]
[1773604125381,0.0014,71555.0,71550.0,0.02927304]
[1773604125580,0.0014,71555.0,71550.0,0.05854608]
[1773604125781,0.0014,71555.0,71551.0,0.02927304]
[1773604126079,0.0014,71556.0,71551.0,0.02927304]
[1773604126473,0.041917,71559.0,71551.0,0.02927304]
[1773604126680,0.0014,71558.0,71551.0,0.02927304]
[1773604127095,0.0014,71557.0,71551.0,0.02927304]
[1773604127466,0.041917,71558.0,71551.0,0.02927304]
[1773604127670,0.0014,71557.0,71551.0,0.05854608]
[1773604129673,0.0014,71557.0,71551.0,0.02927304]
[1773604130183,0.041917,71558.0,71551.0,0.02927304]
[1773604130384,0.0014,71557.0,71551.0,0.05854608]
[1773604130681,0.041917,71558.0,71551.0,0.05854608]
[1773604130982,0.0014,71557.0,71551.0,0.05854608]
[1773604131191,0.041917,71558.0,71551.0,0.05854608]
[1773604131383,0.043318,71557.0,71551.0,0.05854608]
[1773604131580,0.041919,71556.0,71551.0,0.05854608]
[1773604131782,0.041919,71556.0,71551.0,0.02927304]
[1773604133978,0.0014,71557.0,71551.0,0.02927304]
[1773604134985,0.043318,71557.0,71551.0,0.02927304]
[1773604144682,0.041919,71556.0,71551.0,0.02927304]
[1773604145189,0.041919,71555.0,71551.0,4e-08]
[1773604145494,0.041919,71555.0,71545.0,0.041924]
[1773604147187,0.043318,71557.0,71545.0,0.041924]
[1773604148094,0.043318,71557.0,71546.0,0.041924]
[1773604155203,0.041919,71556.0,71546.0,0.041924]
[1773604156799,0.0014,71557.0,71543.0,0.00736]
[1773604157002,0.0322714,71556.0,71543.0,0.00736]
[1773604157202,0.041922,71551.0,71543.0,0.00736]
[1773604157503,0.0014,71550.0,71543.0,0.049286]
[1773604160609,0.0014,71550.0,71543.0,0.041926]
[1773604161898,0.0014,71550.0,71543.0,0.049286]
[1773604166995,0.0014,71550.0,71543.0,0.00736]
[1773604168200,0.0014,71550.0,71543.0,0.049286]
[1773604169910,0.0014,71550.0,71544.0,0.041925]
[1773604170111,0.0014,71550.0,71544.0,0.07295773]
[1773604171412,0.0014,71550.0,71544.0,0.041925]
[1773604173410,0.0014,71551.0,71545.0,0.041925]
[1773604173608,0.0014,71555.0,71547.0,0.03103273]
[1773604176617,0.0014,71555.0,71544.0,0.041925]
[1773604177413,0.0014,71555.0,71544.0,0.07295773]
[1773604178318,0.0014,71555.0,71545.0,0.041925]
[1773604182820,0.0014,71555.0,71545.0,0.07295773]
[1773604184024,0.00736,71562.0,71550.0,0.03103273]
[1773604184217,0.0014,71561.0,71552.0,0.03103273]
[1773604184615,0.049275,71562.0,71552.0,0.03103273]
[1773604184918,0.0014,71561.0,71552.0,0.03103273]
[1773604186423,0.08794043,71570.0,71552.0,0.03103273]
[1773604186627,0.0014,71569.0,71558.0,0.03103273]
[1773604186925,0.041912,71568.0,71558.0,0.03103273]
[1773604187328,0.0014,71567.0,71558.0,0.03103273]
[1773604188129,0.0014,71566.0,71558.0,0.03103273]
[1773604188429,0.0014,71565.0,71558.0,0.03103273]
[1773604188824,0.0014,71564.0,71558.0,0.03103273]
[1773604189320,0.041912,71568.0,71558.0,0.03103273]
[1773604189321,0.0014,71563.0,71558.0,0.03103273]
[1773604189731,0.041912,71568.0,71558.0,0.03103273]
[1773604190029,0.0014,71567.0,71558.0,0.03103273]
[1773604190232,0.041912,71568.0,71558.0,0.03103273]
[1773604190423,0.0014,71567.0,71558.0,0.03103273]
[1773604190932,0.041912,71568.0,71558.0,0.03103273]
[1773604190933,0.0014,71566.0,71558.0,0.03103273]
[1773604191225,0.041912,71568.0,71558.0,0.03103273]
[1773604191530,0.0014,71567.0,71558.0,0.03103273]
[1773604191734,0.041912,71568.0,71558.0,0.03103273]
[1773604191924,0.043312,71567.0,71558.0,0.03103273]
[1773604192232,0.041913,71566.0,71558.0,0.03103273]
[1773604192430,0.0014,71565.0,71558.0,0.03103273]
[1773604192929,0.0014,71564.0,71558.0,0.03103273]
[1773604193317,0.0014,71563.0,71558.0,0.03103273]
[1773604193730,0.041913,71566.0,71558.0,0.03103273]
[1773604193926,0.0014,71565.0,71558.0,0.03103273]
[1773604194328,0.0014,71564.0,71558.0,0.03103273]
[1773604194533,0.041915,71563.0,71552.0,0.04192]
[1773604194725,0.041915,71563.0,71553.0,0.02740462]
[1773604196333,0.041915,71563.0,71553.0,0.06932462]
[1773604196632,0.0014,71564.0,71553.0,0.06932462]
[1773604196834,0.0014,71564.0,71554.0,0.02740462]
[1773604197736,0.043314,71564.0,71554.0,0.02740462]
[1773604198131,0.0014,71564.0,71554.0,0.06932362]
[1773604198534,0.0014,71564.0,71555.0,0.02740462]
[1773604200636,0.043314,71564.0,71555.0,0.02740462]
[1773604203925,0.0014,71564.0,71555.0,0.06932362]
[1773604204331,0.043314,71564.0,71555.0,0.02740462]
[1773604204940,0.0014,71564.0,71555.0,0.06932362]
[1773604206143,0.0014,71564.0,71555.0,0.02740462]
[1773604206941,0.043314,71564.0,71555.0,0.02740462]
[1773604207343,0.0014,71564.0,71555.0,0.02740462]
[1773604207533,0.043314,71564.0,71555.0,0.02740462]
[1773604207733,0.0014,71564.0,71555.0,0.02740462]
[1773604208442,0.041914,71563.0,71555.0,0.02740462]
[1773604215742,0.043314,71564.0,71555.0,0.02740462]
[1773604218652,0.043314,71564.0,71554.0,0.041919]
[1773604225364,0.0014,71564.0,71549.0,0.1682814]
[1773604225567,0.043314,71564.0,71552.0,0.041921]
[1773604227467,0.041915,71563.0,71552.0,0.041921]
[1773604231058,0.0014,71564.0,71553.0,0.04192]
[1773604232376,0.043314,71564.0,71553.0,0.04192]
[1773604244084,0.041915,71563.0,71553.0,0.04192]
[1773604244781,0.0014,71564.0,71549.0,0.0266707]
[1773604244980,0.043314,71564.0,71553.0,0.04192]
[1773604246680,0.0014,71564.0,71549.0,0.0266707]
[1773604246888,0.0014,71564.0,71557.0,0.041917]
[1773604247084,0.00735,71572.0,71556.0,0.0252707]
[1773604247285,0.0014,71571.0,71562.0,0.041915]
[1773604247674,0.0014,71570.0,71562.0,0.041915]
[1773604248286,0.0014,71570.0,71556.0,0.0252707]
[1773604248787,0.0014,71569.0,71556.0,0.0252707]
[1773604249186,0.0014,71568.0,71556.0,0.0252707]
[1773604249888,0.0014,71567.0,71556.0,0.0252707]
[1773604250189,0.0014,71567.0,71556.0,0.041918]
[1773604250387,0.0014,71567.0,71557.0,0.041917]
[1773604250981,0.0014,71567.0,71558.0,0.041917]
[1773604253895,0.0014,71567.0,71559.0,0.041917]
[1773604254089,0.0014,71567.0,71550.0,0.1131429]
[1773604254289,0.0014,71567.0,71551.0,0.02522496]
[1773604255094,0.0014,71567.0,71559.0,0.041916]
[1773604257700,0.0014,71567.0,71555.0,0.041919]
[1773604257902,0.041913,71566.0,71555.0,0.041919]
[1773604263607,0.0014,71567.0,71552.0,0.02522496]
[1773604265103,0.0014,71567.0,71557.0,0.041917]
[1773604265306,0.043312,71567.0,71557.0,0.041917]
[1773604270713,0.0014,71567.0,71552.0,0.02522496]
[1773604271507,0.041914,71565.0,71555.0,0.041919]
[1773604274206,0.041913,71566.0,71555.0,0.041919]
[1773604274608,0.043312,71567.0,71556.0,0.041918]
[1773604276514,0.041913,71566.0,71556.0,0.041918]
[1773604286332,0.0014,71567.0,71552.0,0.02522496]
[1773604286525,0.0014,71567.0,71550.0,0.16747634]
[1773604287631,0.0014,71567.0,71550.0,0.19134059]
[1773604288028,0.041913,71565.0,71554.0,0.04192]
[1773604293837,0.041915,71563.0,71552.0,0.04192]
[1773604302629,0.041915,71562.0,71552.0,0.04192]
[1773604304347,0.0014,71561.0,71552.0,0.04192]
[1773604317854,0.043316,71561.0,71551.0,0.16747634]
[1773604318355,0.043316,71561.0,71551.0,0.20939734]
[1773604319355,0.0014,71561.0,71551.0,0.16747634]
[1773604319556,0.0014,71561.0,71550.0,0.21079834]
[1773604319954,0.0014,71561.0,71551.0,0.041921]
[1773604320855,0.043316,71561.0,71551.0,0.041921]
[1773604362197,0.0014,71561.0,71550.0,0.0014]
[1773604362396,0.041919,71556.0,71545.0,0.041925]
[1773604362698,0.02222146,71555.0,71540.0,0.25182699]
[1773604362899,0.0014,71554.0,71540.0,0.25182699]
[1773604363094,0.04332,71554.0,71543.0,0.049286]
[1773604364101,0.04332,71554.0,71543.0,0.041926]
[1773604365199,0.04332,71554.0,71544.0,0.041925]
[1773604365399,0.0014,71554.0,71544.0,0.041925]
[1773604366006,0.02362146,71554.0,71538.0,0.25042699]
[1773604366194,0.041922,71550.0,71538.0,0.041929]
[1773604366386,0.041923,71549.0,71538.0,0.041929]
[1773604367402,0.041923,71549.0,71542.0,0.00736]
[1773604368093,0.00736,71545.0,71542.0,0.00736]
[1773604368493,0.00736,71545.0,71538.0,0.041929]
[1773604369002,0.041923,71549.0,71538.0,0.041929]
[1773604369203,0.041923,71549.0,71535.0,0.0014]
[1773604370000,0.041923,71549.0,71539.0,0.041928]
[1773604371291,0.02222146,71553.0,71539.0,0.041928]
[1773604371490,0.02236146,71553.0,71539.0,0.041928]
[1773604371697,0.00736,71549.0,71539.0,0.041928]
[1773604372308,0.00014,71548.0,71539.0,0.041928]
[1773604372511,0.00014,71548.0,71535.0,0.0014]
[1773604372512,0.00014,71548.0,71531.0,0.0213476]
[1773604372807,0.00014,71548.0,71532.0,0.0014]
[1773604373006,0.00014,71548.0,71532.0,0.02244469]
[1773604373306,0.00014,71548.0,71533.0,0.0014]
[1773604373501,0.00014,71548.0,71538.0,0.041929]
[1773604374406,0.00014,71548.0,71539.0,0.041928]
[1773604374906,0.00014,71548.0,71540.0,0.041928]